fUST/lending_fUST_20250830
["ID","MTS","AMOUNT","RATE_DAILY","PERIOD"]
[382070658,1756494642919,-151.0,0.00027397,7]
[382070659,1756494642928,-151.0,0.00027397,7]
[382070660,1756494642938,-151.0,0.00027397,7]
[382070661,1756494642948,-151.0,0.00027397,7]
[382070662,1756494642957,-151.0,0.00027397,7]
[382070663,1756494642966,-151.0,0.00027397,7]
[382070665,1756494642976,-151.0,0.00027397,7]
[382070667,1756494642985,-479.947747,0.00027397,7]
[382070669,1756494642995,-479.947747,0.00027397,7]
[382070671,1756494643004,-151.0,0.00027397,7]
[382070672,1756494643014,-151.0,0.00027397,7]
[382070673,1756494643023,-151.0,0.00027397,7]
[382070674,1756494643032,-479.947747,0.00027397,7]
[382070675,1756494643042,-330.436393,0.00027397,7]
[382070676,1756494643051,-479.947747,0.00027397,7]
[382070677,1756494643063,-151.0,0.00027397,7]
[382070678,1756494643072,-330.436393,0.00027397,7]
[382070679,1756494643082,-151.0,0.00027397,7]
[382070680,1756494643091,-151.0,0.00027397,7]
[382070681,1756494643100,-479.947747,0.00027397,7]
[382070682,1756494643109,-151.0,0.00027397,7]
[382070683,1756494643119,-330.436393,0.00027397,7]
[382070684,1756494643129,-479.947747,0.00027397,7]
[382070685,1756494643138,-151.0,0.00027397,7]
[382070686,1756494643148,-330.436393,0.00027397,7]
[382070687,1756494643157,-151.0,0.00027397,7]
[382070688,1756494643167,-151.0,0.00027397,7]
[382070689,1756494643177,-330.436393,0.00027397,7]
[382070690,1756494643186,-202.031042,0.00027397,7]
[382070691,1756494643195,-151.0,0.000274,18]
[382070693,1756494643204,-3000.0,0.00027612,5]
[382070695,1756494643215,-250.0,0.00027621,5]
[382070697,1756494643225,-1000.0,0.00027621,5]
[382070698,1756494643234,-1000.0,0.00027621,5]
[382070699,1756494643244,-1000.0,0.00027621,5]
[382070700,1756494643253,-1000.0,0.00027621,5]
[382070701,1756494643262,-1000.0,0.00027621,5]
[382070702,1756494643272,-1000.0,0.00027621,5]
[382070703,1756494643281,-188.65173561,0.00027621,5]
[382070704,1756494643290,-1000.0,0.00027621,5]
[382070705,1756494643300,-1000.0,0.00027621,5]
[382070706,1756494643309,-1001.40951824,0.00027621,5]
[382070707,1756494643318,-500.3473098,0.00027621,5]
[382070708,1756494643327,-1000.0,0.00027621,5]
[382070709,1756494643337,-1000.0,0.00027621,5]
[382070710,1756494643346,-1000.0,0.00027621,5]
[382070711,1756494643356,-1000.0,0.00027621,5]
[382070712,1756494643366,-1000.0,0.00027621,5]
[382070713,1756494643379,-505.27719589,0.00027621,5]
[382070714,1756494643388,-1000.0,0.00027621,5]
[382070715,1756494643398,-1000.0,0.00027621,5]
[382070716,1756494643407,-742.94924716,0.00027621,5]
[382070717,1756494643417,-1000.0,0.00027621,5]
[382070718,1756494643426,-505.92988686,0.00027621,5]
[382070719,1756494643436,-1000.0,0.00027621,5]
[382070720,1756494643445,-1000.0,0.00027621,5]
[382070721,1756494643455,-151.0,0.00027621,7]
[382070722,1756494643465,-151.0,0.00027621,7]
[382070723,1756494643474,-277.52443,0.00027621,7]
[382070724,1756494643483,-151.0,0.00027621,7]
[382070725,1756494643492,-248.736878,0.00027621,7]
[382070726,1756494643502,-151.0,0.00027621,7]
[382070727,1756494643511,-248.736878,0.00027621,7]
[382070728,1756494643521,-151.0,0.00027621,7]
[382070729,1756494643530,-248.736878,0.00027621,7]
[382070730,1756494643540,-151.0,0.00027621,7]
[382070731,1756494643549,-248.736878,0.00027621,7]
[382070732,1756494643559,-151.0,0.00027621,7]
[382070733,1756494643569,-151.0,0.00027621,7]
[382070734,1756494643578,-151.0,0.00027621,7]
[382070735,1756494643588,-151.0,0.00027621,7]
[382070736,1756494643598,-151.0,0.00027621,7]
[382070737,1756494643607,-151.0,0.00027621,7]
[382070738,1756494643618,-153.459432,0.00027621,7]
[382070739,1756494643628,-151.0,0.00027621,7]
[382070740,1756494643637,-151.0,0.00027621,7]
[382070741,1756494643647,-151.0,0.00027621,7]
[382070742,1756494643657,-214.346773,0.00027621,7]
[382070743,1756494643667,-151.0,0.00027621,7]
[382070744,1756494643677,-151.0,0.00027621,7]
[382070745,1756494643686,-151.0,0.00027621,7]
[382070746,1756494643696,-151.0,0.00027621,7]
[382070747,1756494643706,-479.947747,0.00027621,7]
[382070748,1756494643715,-187.144786,0.00027621,7]
[382070749,1756494643724,-479.947747,0.00027621,7]
[382070750,1756494643734,-151.0,0.00027621,7]
[382070751,1756494643743,-330.436393,0.00027621,7]
[382070752,1756494643752,-151.0,0.00027621,7]
[382070753,1756494643762,-479.947747,0.00027621,7]
[382070754,1756494643771,-151.0,0.00027621,7]
[382070755,1756494643781,-330.436393,0.00027621,7]
[382070756,1756494643790,-776.44574498,0.00027712,5]
[382070757,1756494643799,-3000.0,0.00027712,5]
[382070758,1756494643809,-2284.12600008,0.00027712,5]
[382070759,1756494643818,-460.0,0.0002778,2]
[382070760,1756494643828,-151.0,0.000278,15]
[382070761,1756494643838,-173.66815186,0.00027914,2]
[382070762,1756494643847,-151.0,0.00028,7]
[382070763,1756494644027,-151.0,0.00028,7]
[382070764,1756494644037,-151.0,0.00028,7]
[382070765,1756494644047,-151.0,0.00028,7]
[382070766,1756494644057,-151.0,0.00028,7]
[382070767,1756494644067,-151.0,0.00028,7]
[382070768,1756494644078,-151.0,0.00028,7]
[382070769,1756494644088,-151.0,0.00028,7]
[382070770,1756494644097,-159.638801,0.00028,7]
[382070771,1756494644107,-151.0,0.00028,7]
[382070772,1756494644116,-217.101025,0.00028,7]
[382070773,1756494644125,-217.101025,0.00028,7]
[382070774,1756494644142,-217.101025,0.00028,7]
[382070775,1756494644156,-217.101025,0.00028,7]
[382070776,1756494644167,-3572.62280235,0.00028,10]
[382070777,1756494644872,-216.21406313,0.0002626,3]
[382070778,1756494644882,-479.947747,0.00027397,7]
[382070779,1756494644893,-330.436393,0.00027397,7]
[382070780,1756494644903,-350.72828391,0.00027397,7]
[382070781,1756494644915,-129.21946309,0.00027397,7]
[382070782,1756494644925,-330.436393,0.00027397,7]
[382070783,1756494644934,-330.436393,0.00027397,7]
[382070784,1756494644945,-330.436393,0.00027621,7]
[382070785,1756494644954,-479.947747,0.00027621,7]
[382070786,1756494644964,-993.88488674,0.00028,10]
[382070787,1756494645342,-216.21406313,0.00027,7]
[382070788,1756494645352,-257.905986,0.00027397,2]
[382070789,1756494645361,-257.905986,0.00027397,2]
[382070790,1756494645374,-257.905986,0.00027397,2]
[382070791,1756494645384,-257.905986,0.00027397,2]
[382070792,1756494645393,-330.436393,0.00027621,7]
[382070793,1756494645403,-257.905986,0.00027621,2]
[382070794,1756494645413,-1653.56079338,0.00028,10]
[382070795,1756494645425,-613.31339608,0.00028,10]
[382070814,1756494646355,-257.905986,0.00027397,2]
[382070816,1756494646367,-257.905986,0.00027397,2]
[382070818,1756494646378,-257.905986,0.00027621,2]
[382070820,1756494646388,-257.905986,0.00027621,2]
[382070822,1756494646398,-1075.38123894,0.00028,10]
[382070826,1756494723675,366.874343,0.00023757,2]
[382070827,1756494790808,10326.2113327,0.00023897,2]
[382070847,1756495123497,34557.49017326,0.00024005,2]
[382070873,1756495671439,20269.95229628,0.00018,2]
[382070874,1756495674061,879.17843563,0.00023573,2]
[382070876,1756495681588,907.45748562,0.00023455,10]
[382070877,1756495681640,1059.2893638,0.0002369,12]
[382070879,1756495687806,500.0,0.000239,2]
[382070881,1756495698562,11960.0,0.00018,2]
[382070883,1756495701520,192.92474915,0.000221,2]
[382070884,1756495711714,355.35352368,0.00022,2]
[382070886,1756495722693,904.02557113,0.0002,2]
[382070888,1756495728826,613.03801579,0.000217,2]
[382070893,1756495743493,500.0,0.000239,2]
[382070894,1756495744058,500.0,0.000239,2]
[382070895,1756495745286,168.075616,0.00013699,2]
[382070896,1756495745341,500.0,0.000239,2]
[382070900,1756495756039,1000.0,0.00023804,2]
[382070909,1756495828195,183.437171,0.00023816,2]
[382070941,1756495832397,-309.54244596,0.00024054,2]
[382070942,1756495832407,-1722.62125505,0.00024105,2]
[382070943,1756495832454,-129.48873226,0.00024105,2]
[382070944,1756495832464,-260.39171916,0.0002465,2]
[382070945,1756495832475,-2013.21191331,0.0002465,2]
[382070946,1756495832485,-1200.0,0.00024813,2]
[382070947,1756495832495,-300.0,0.00024813,2]
[382070948,1756495832506,-300.0,0.00024813,2]
[382070949,1756495832516,-300.0,0.00024813,2]
[382070950,1756495832526,-1200.0,0.00024813,2]
[382070951,1756495832536,-3756.84772428,0.00024814,2]
[382070952,1756495832547,-241.04156235,0.00024818,2]
[382070953,1756495832557,-42310.55061828,0.00024819,2]
[382071460,1756495843460,-3281.72824,0.00024819,2]
[382074731,1756496586255,220.67378735,0.00023197,2]
[382074732,1756496615350,4008.06583149,0.00020208,2]
[382074733,1756496632442,259.0,8.5e-07,2]
[382074739,1756496651773,347.27767874,0.000199,2]
[382074741,1756496652169,347.27767868,0.00021389,2]
[382074742,1756496652775,347.27767868,0.00022879,2]
[382074751,1756496703151,480.0,0.00022191,2]
[382074753,1756496706795,168.152794,0.00013699,2]
[382074769,1756496788926,188.7825383,0.00023197,2]
[382074770,1756496791079,754.37502304,0.00023197,2]
[382074781,1756496842731,300.97398846,0.000199,2]
[382074782,1756496842898,300.97398818,0.00021389,2]
[382074795,1756496949474,1000.0,0.0002382,2]
[382074801,1756497003099,480.0,0.00022191,2]
[382074807,1756497024212,371.98309206,0.000199,2]
[382074808,1756497024350,371.9830919,0.00022879,2]
[382074809,1756497024979,371.9830919,0.00021389,2]
[382074898,1756497032951,-191.238727,0.00024093,2]
[382074900,1756497032961,-525.18382315,0.000241,2]
[382074903,1756497032988,-495.94869201,0.000241,2]
[382074905,1756497032997,-193.145049,0.00024361,2]
[382074908,1756497033007,-267.14030893,0.00024368,2]
[382074910,1756497033019,-104.84278297,0.00024368,2]
[382074912,1756497033031,-995.26107593,0.00024817,2]
[382074914,1756497033046,-268.0,0.00024817,2]
[382074916,1756497033056,-300.0,0.00024817,2]
[382074918,1756497033067,-300.0,0.00024817,2]
[382074920,1756497033077,-300.0,0.00024817,2]
[382074922,1756497033088,-1200.0,0.00024817,2]
[382074924,1756497033099,-1200.0,0.00024818,2]
[382074926,1756497033110,-4982.50219963,0.00024819,2]
[382074929,1756497033127,-629.52576414,0.00024819,2]
[382074931,1756497033137,-150.0,0.00024907,2]
[382074932,1756497033148,-500.0,0.00024973,2]
[382074935,1756497033158,-500.0,0.00024973,2]
[382074937,1756497033168,-500.0,0.00024973,2]
[382074939,1756497033179,-112.25499472,0.00024973,2]
[382074941,1756497033195,-12062.25229106,0.00024973,2]
[382075218,1756497038635,-37825.49271422,0.00024973,2]
[382075220,1756497038644,-500.0,0.00024973,2]
[382075222,1756497038654,-500.0,0.00024973,2]
[382075224,1756497038663,-500.0,0.00024973,2]
[382075226,1756497038672,-500.0,0.00024973,2]
[382075228,1756497038682,-500.0,0.00024973,2]
[382075230,1756497038691,-500.0,0.00024973,2]
[382075231,1756497038701,-500.0,0.00024973,2]
[382075233,1756497038710,-501.24569332,0.00024973,2]
[382075235,1756497038720,-500.0,0.00024973,2]
[382075237,1756497038730,-501.78163042,0.00024973,2]
[382075239,1756497038739,-500.0,0.00024973,2]
[382075241,1756497038749,-500.0,0.00024973,2]
[382075243,1756497038759,-500.0,0.00024973,2]
[382075245,1756497038769,-500.0,0.00024973,2]
[382075247,1756497038778,-355.80338343,0.00024973,2]
[382075249,1756497038788,-5612.02796377,0.00024973,2]
[382075251,1756497038797,-946.09,0.0002498,10]
[382075253,1756497038807,-50391.33500539,0.0002499,2]
[382075255,1756497038817,-1477.16,0.0002499,10]
[382075257,1756497038827,-237.97210221,0.00024999,2]
[382075259,1756497038836,-629.06175018,0.00024999,2]
[382075280,1756497039047,-500.0,0.00024999,2]
[382075282,1756497039067,-500.0,0.00024999,2]
[382075284,1756497039078,-500.0,0.00024999,2]
[382075286,1756497039090,-500.0,0.00024999,2]
[382075288,1756497039103,-500.0,0.00024999,2]
[382075290,1756497039119,-500.0,0.00024999,2]
[382075292,1756497039129,-500.0,0.00024999,2]
[382075294,1756497039138,-500.0,0.00024999,2]
[382075296,1756497039148,-500.0,0.00024999,2]
[382075298,1756497039158,-500.0,0.00024999,2]
[382075300,1756497039168,-500.0,0.00024999,2]
[382075302,1756497039178,-500.0,0.00024999,2]
[382075304,1756497039187,-500.0,0.00024999,2]
[382075306,1756497039197,-500.0,0.00024999,2]
[382075308,1756497039207,-500.0,0.00024999,2]
[382075310,1756497039216,-500.0,0.00024999,2]
[382075312,1756497039226,-500.0,0.00024999,2]
[382075314,1756497039236,-500.0,0.00024999,2]
[382075316,1756497039245,-3134.23996919,0.00025,2]
[382075318,1756497039255,-3484.77513223,0.00025,7]
[382075320,1756497039265,-9090.57786489,0.00025,2]
[382075322,1756497039275,-1500.10273186,0.00025,30]
[382075324,1756497039285,-500.0,0.0002535,2]
[382075326,1756497039295,-203.46894097,0.00025373,2]
[382075328,1756497039304,-500.0,0.00025396,20]
[382075330,1756497039313,-300.0,0.00025396,20]
[382075332,1756497039323,-300.0,0.00025396,20]
[382075334,1756497039332,-300.0,0.00025396,20]
[382075336,1756497039347,-300.0,0.00025396,20]
[382075338,1756497039357,-300.0,0.00025396,20]
[382075340,1756497039366,-300.0,0.00025396,20]
[382075342,1756497039375,-300.0,0.00025396,20]
[382075344,1756497039385,-300.0,0.00025396,20]
[382075346,1756497039394,-300.0,0.00025396,20]
[382075348,1756497039403,-300.0,0.00025396,20]
[382075350,1756497039413,-300.0,0.00025396,20]
[382075352,1756497039422,-300.0,0.00025396,20]
[382075353,1756497039432,-300.0,0.00025396,20]
[382075355,1756497039441,-300.0,0.00025396,20]
[382075357,1756497039450,-300.0,0.00025396,20]
[382075359,1756497039460,-60857.0829135,0.00025417,2]
[382075361,1756497039469,-35493.41602591,0.00025418,2]
[382075367,1756497039513,-60824.99999958,0.00025418,2]
[382075369,1756497039528,-906.336004,0.00025418,2]
[382075486,1756497040632,-267.0,0.00025418,2]
[382075488,1756497040643,-456.4,0.00025418,2]
[382075490,1756497040654,-572.325,0.00025418,2]
[382075531,1756497041206,-23193.68879751,0.00025418,2]
[382075534,1756497041216,-861.45,0.00025418,3]
[382075535,1756497041226,-430.73,0.00025418,3]
[382075537,1756497041235,-215.36,0.00025418,3]
[382075539,1756497041245,-646.12,0.00025418,3]
[382075541,1756497041255,-151.0,0.00025418,7]
[382075543,1756497041265,-151.0,0.00025418,7]
[382075545,1756497041274,-151.0,0.00025418,7]
[382075547,1756497041283,-151.0,0.00025418,7]
[382075549,1756497041292,-151.0,0.00025418,7]
[382075552,1756497041302,-183.246,0.0002542,10]
[382075554,1756497041311,-151.0,0.00025427,2]
[382075556,1756497041321,-151.0,0.00025427,2]
[382075558,1756497041330,-151.0,0.00025427,2]
[382075559,1756497041341,-151.0,0.00025427,2]
[382075561,1756497041351,-151.0,0.00025427,2]
[382075563,1756497041360,-151.0,0.00025427,2]
[382075565,1756497041370,-151.0,0.00025427,2]
[382075567,1756497041379,-151.0,0.00025427,2]
[382075569,1756497041390,-151.30874469,0.00025427,2]
[382075572,1756497041401,-151.0,0.00025427,2]
[382075573,1756497041411,-151.0,0.00025427,2]
[382075576,1756497041420,-8632.1023816,0.00025428,2]
[382075578,1756497041430,-31066.90259864,0.00025428,2]
[382075829,1756497043730,-1624.42871587,0.00025428,2]
[382080114,1756497209351,238.05395328,0.000199,2]
[382080160,1756497437064,33847.0082001,0.00023274,2]
[382080168,1756497483248,381.33952678,0.00023718,2]
[382080170,1756497485732,1525.35810711,0.00023718,2]
[382080171,1756497488139,3428.62368527,0.00023718,2]
[382080191,1756497568002,5000.0,0.0002405,2]
[382080221,1756497684045,522.10972069,0.00024015,2]
[382080224,1756497697494,463.16074706,0.00023718,2]
[382080225,1756497699391,1852.64298822,0.00023718,2]
[382080226,1756497701412,4164.27827678,0.00023718,2]
[382080227,1756497701439,3224.09178285,0.00020208,2]
[382080237,1756497730113,82899.3884447,0.00023142,2]
[382080239,1756497730465,168.068286,0.00013699,2]
[382080279,1756497921145,179.13,0.00024,2]
[382080281,1756497937042,299.13606918,0.000199,2]
[382080282,1756497937292,299.13606918,0.00022985,2]
[382080289,1756497963575,161.47181471,0.00023972,2]
[382080294,1756497999618,191.238728,0.00023123,2]
[382080306,1756498063987,1281.74265737,0.00020208,2]
[382080312,1756498116859,259.25125996,0.000199,2]
[382080315,1756498117582,259.25125996,0.00022985,2]
[382080318,1756498131387,193.145048,0.00023131,2]
[382080330,1756498194881,4374.1377064,0.00023139,2]
[382080851,1756498237786,-433.72531063,0.00024115,2]
[382080854,1756498237798,-567.95000424,0.00024115,2]
[382080870,1756498237939,-198.32468513,0.00024115,2]
[382080872,1756498237949,-300.0,0.00024116,2]
[382080874,1756498237958,-1200.0,0.00024116,2]
[382080876,1756498237967,-200.0,0.00024117,10]
[382080878,1756498237977,-200.0,0.00024117,10]
[382080880,1756498237986,-200.0,0.00024117,10]
[382080896,1756498238184,-200.0,0.00024117,10]
[382080897,1756498238194,-79408.102676,0.00024117,2]
[382080898,1756498238203,-1634.84,0.0002414,10]
[382080899,1756498238212,-1362.36,0.0002414,10]
[382080900,1756498238222,-5079.97608181,0.00024148,2]
[382080901,1756498238231,-629.06175018,0.00024149,2]
[382080902,1756498238240,-237.97210221,0.00024149,2]
[382080903,1756498238250,-500.0,0.00024149,2]
[382080904,1756498238259,-500.0,0.00024149,2]
[382080906,1756498238269,-500.0,0.00024149,2]
[382080908,1756498238278,-500.0,0.00024149,2]
[382080909,1756498238288,-500.0,0.00024149,2]
[382080912,1756498238298,-500.0,0.00024149,2]
[382080914,1756498238307,-500.0,0.00024149,2]
[382080916,1756498238316,-500.0,0.00024149,2]
[382080918,1756498238326,-500.0,0.00024149,2]
[382080919,1756498238335,-500.0,0.00024149,2]
[382080920,1756498238344,-500.0,0.00024149,2]
[382080922,1756498238353,-500.0,0.00024149,2]
[382080924,1756498238365,-500.0,0.00024149,2]
[382080926,1756498238374,-500.0,0.00024149,2]
[382080928,1756498238383,-500.0,0.00024149,2]
[382080930,1756498238393,-500.0,0.00024149,2]
[382080932,1756498238404,-500.0,0.00024149,2]
[382080934,1756498238413,-500.0,0.00024149,2]
[382080936,1756498238422,-500.0,0.00024149,2]
[382080938,1756498238432,-500.0,0.00024149,2]
[382080940,1756498238441,-500.0,0.00024149,2]
[382080942,1756498238452,-500.0,0.00024149,2]
[382080943,1756498238461,-500.0,0.00024149,2]
[382080944,1756498238470,-500.0,0.00024149,2]
[382080946,1756498238479,-500.0,0.00024149,2]
[382080948,1756498238488,-500.0,0.00024149,2]
[382080950,1756498238497,-500.0,0.00024149,2]
[382080952,1756498238507,-500.0,0.00024149,2]
[382080954,1756498238516,-500.0,0.00024149,2]
[382080956,1756498238525,-500.0,0.00024149,2]
[382080958,1756498238535,-500.0,0.00024149,2]
[382080960,1756498238544,-500.0,0.00024149,2]
[382080961,1756498238553,-500.0,0.00024149,2]
[382080964,1756498238563,-500.0,0.00024149,2]
[382080966,1756498238572,-500.0,0.00024149,2]
[382080967,1756498238581,-500.0,0.00024149,2]
[382080969,1756498238591,-500.0,0.00024149,2]
[382080970,1756498238601,-500.0,0.00024149,2]
[382080972,1756498238610,-500.0,0.00024149,2]
[382080975,1756498238620,-500.0,0.00024149,2]
[382080977,1756498238629,-500.0,0.00024149,2]
[382080979,1756498238639,-50000.0,0.0002415,2]
[382080981,1756498238648,-3648.19,0.00024152,3]
[382080983,1756498238657,-1824.1,0.00024152,3]
[382080985,1756498238666,-912.05,0.00024152,3]
[382080987,1756498238676,-456.02,0.00024152,3]
[382080989,1756498238685,-228.01,0.00024152,3]
[382080991,1756498238695,-684.06,0.00024152,3]
[382080993,1756498238704,-500.0,0.00024172,2]
[382080995,1756498238713,-500.0,0.00024173,2]
[382080997,1756498238722,-500.0,0.00024173,2]
[382080999,1756498238731,-500.0,0.00024173,2]
[382081001,1756498238741,-500.0,0.00024173,2]
[382081003,1756498238751,-500.0,0.00024173,2]
[382081005,1756498238761,-500.0,0.00024173,2]
[382081007,1756498238770,-500.0,0.00024173,2]
[382081009,1756498238779,-500.0,0.00024173,2]
[382081011,1756498238788,-500.0,0.00024173,2]
[382081013,1756498238797,-500.0,0.00024173,2]
[382081014,1756498238807,-500.0,0.00024173,2]
[382081017,1756498238817,-500.0,0.00024173,2]
[382081019,1756498238826,-501.10236106,0.00024173,2]
[382081020,1756498238836,-500.0,0.00024173,2]
[382081023,1756498238845,-500.0,0.00024173,2]
[382081025,1756498238855,-500.0,0.00024173,2]
[382081027,1756498238864,-500.0,0.00024173,2]
[382081029,1756498238873,-500.0,0.00024173,2]
[382081031,1756498238883,-500.0,0.00024173,2]
[382081033,1756498238892,-500.0,0.00024173,2]
[382081035,1756498238901,-500.0,0.00024173,2]
[382081037,1756498238911,-500.0,0.00024173,2]
[382081039,1756498238920,-329.701651,0.00024248,2]
[382081041,1756498238930,-508.25223527,0.0002425,2]
[382081043,1756498238939,-534.10727076,0.0002425,2]
[382081045,1756498238948,-277.79859417,0.0002425,2]
[382081046,1756498238958,-500.0,0.0002425,2]
[382081048,1756498238967,-5079.97608178,0.00024334,2]
[382081050,1756498238976,-2329.81075378,0.00024382,2]
[382081052,1756498238985,-500.0,0.00024445,2]
[382081054,1756498238995,-5079.97608178,0.00024519,2]
[382081056,1756498239004,-238.24918865,0.00024568,2]
[382081058,1756498239014,-5079.97608178,0.00024705,2]
[382081060,1756498239023,-500.0,0.00024719,2]
[382081062,1756498239033,-1000.0,0.00024721,2]
[382081064,1756498239042,-1000.0,0.00024721,2]
[382081066,1756498239052,-1000.0,0.00024721,2]
[382081068,1756498239062,-526.40357111,0.00024721,2]
[382081070,1756498239072,-265.34813812,0.00024721,2]
[382081072,1756498239081,-500.0,0.00024721,2]
[382081074,1756498239093,-1000.0,0.00024721,2]
[382081076,1756498239102,-1000.0,0.00024721,2]
[382081078,1756498239111,-1079.48869001,0.00024721,2]
[382081080,1756498239121,-162.0962263,0.00024721,2]
[382081082,1756498239131,-355.80338343,0.00024721,2]
[382081084,1756498239140,-1000.0,0.00024721,2]
[382081086,1756498239150,-1000.0,0.00024721,2]
[382081088,1756498239159,-1000.0,0.00024721,2]
[382081090,1756498239168,-1000.0,0.00024721,2]
[382081092,1756498239179,-1000.0,0.00024721,2]
[382081094,1756498239188,-368.95975832,0.00024721,2]
[382081097,1756498239198,-1000.0,0.00024721,2]
[382081100,1756498239208,-386.30781194,0.00024732,2]
[382081103,1756498239218,-345.88,0.0002479,2]
[382081106,1756498239227,-1000.0,0.00024798,2]
[382081109,1756498239236,-9958.28873841,0.000248,2]
[382081112,1756498239246,-151.0,0.000248,7]
[382081115,1756498239256,-151.0,0.000248,7]
[382081119,1756498239266,-151.0,0.000248,7]
[382081122,1756498239276,-178.801955,0.000248,7]
[382081125,1756498239285,-151.0,0.000248,7]
[382081128,1756498239294,-241.19020099,0.00024834,2]
[382081131,1756498239304,-3319.42957947,0.00024863,2]
[382081134,1756498239313,-500.0,0.00024873,2]
[382081137,1756498239323,-500.0,0.00024873,2]
[382081140,1756498239332,-500.0,0.00024873,2]
[382081144,1756498239342,-500.0,0.00024873,2]
[382081147,1756498239351,-500.0,0.00024873,2]
[382081149,1756498239365,-500.0,0.00024873,2]
[382081152,1756498239374,-500.0,0.00024873,2]
[382081154,1756498239383,-500.0,0.00024873,2]
[382081157,1756498239393,-150.0,0.00024873,2]
[382081160,1756498239404,-500.0,0.00024873,2]
[382081163,1756498239414,-500.5942358,0.00024873,2]
[382081166,1756498239424,-500.0,0.00024873,2]
[382081169,1756498239434,-500.0,0.00024873,2]
[382081172,1756498239445,-500.0,0.00024873,2]
[382081175,1756498239454,-500.0,0.00024873,2]
[382081178,1756498239464,-634.58764763,0.00024873,2]
[382081181,1756498239474,-500.0,0.00024873,2]
[382081184,1756498239483,-500.0,0.00024873,2]
[382081188,1756498239493,-500.0,0.00024873,2]
[382081191,1756498239503,-500.75746561,0.00024873,2]
[382081194,1756498239512,-500.0,0.00024873,2]
[382081197,1756498239521,-500.0,0.00024873,2]
[382081200,1756498239531,-500.0,0.00024873,2]
[382081202,1756498239540,-500.0,0.00024873,2]
[382081204,1756498239550,-500.0,0.00024873,2]
[382081206,1756498239559,-500.0,0.00024873,2]
[382081208,1756498239570,-500.0,0.00024873,2]
[382081210,1756498239579,-500.0,0.00024873,2]
[382081212,1756498239592,-500.0,0.00024873,2]
[382081214,1756498239602,-500.0,0.00024873,2]
[382081216,1756498239611,-500.0,0.00024873,2]
[382081218,1756498239621,-500.0,0.00024873,2]
[382081220,1756498239630,-500.0,0.00024873,2]
[382081222,1756498239639,-500.0,0.00024873,2]
[382081224,1756498239649,-501.78163042,0.00024873,2]
[382081226,1756498239658,-501.24569332,0.00024873,2]
[382081228,1756498239667,-304.0,0.00024878,2]
[382081230,1756498239677,-151.0,0.0002489,7]
[382081232,1756498239686,-151.0,0.0002489,7]
[382081234,1756498239695,-13277.7183179,0.0002489,2]
[382081236,1756498239704,-151.0,0.0002489,7]
[382081238,1756498239714,-151.0,0.0002489,7]
[382081240,1756498239723,-151.0,0.0002489,7]
[382081242,1756498239732,-151.0,0.0002489,7]
[382081244,1756498239741,-5079.97608178,0.0002489,2]
[382081246,1756498239750,-412.46623084,0.00024899,2]
[382081248,1756498239759,-3134.23996919,0.000249,2]
[382081250,1756498239768,-151.567649,0.000249,7]
[382081252,1756498239778,-151.0,0.000249,7]